Workbook

Sheet Început
B1: DESPRE ACEST ȘABLON
B2: Utilizați acest registru de lucru Buget eveniment pentru a urmări cheltuielile efectuate pentru un eveniment și veniturile obținute în urma acestuia.
B3: Completați numele evenimentului și introduceți detaliile în tabelele din foile de lucru Cheltuieli și Venituri.
B4: Totalul cheltuielilor și Veniturile totale sunt calculate automat.
B5: Rezumatul pentru profit și pierderi și Diagrama sunt actualizate automat în foaia de lucru Rezumat Profit-Pierdere.
B6: Notă:
B7: Găsiți instrucțiuni suplimentare în coloana A din fiecare foaie de lucru. Acest text a fost ascuns intenționat. Pentru a elimina textul, selectați coloana A, apoi selectați ȘTERGERE.
B8: Pentru a afla mai multe despre tabele, apăsați SHIFT, apoi F10 într-un tabel, selectați opțiunea TABEL, apoi selectați TEXT ALTERNATIV

Sheet Cheltuieli
A1: Introduceți cheltuielile estimate și reale pentru fiecare categorie în tabelele respective din această foaie de lucru și numele evenimentului în celula D1, pentru a personaliza titlul acestei foi de lucru și a altora. Subtitlul acestei foi de lucru se află în celula H1. Găsiți instrucțiuni utile despre cum să utilizați această foaie de lucru în celulele din această coloană. Următoarele instrucțiuni se află în celula A3. | B1: Buget de eveniment pentru | D1: Nume eveniment | H1: CHELTUIELI
A3: Eticheta Cheltuieli totale se află în celula de la dreapta, eticheta Estimat în celula G3 și Real în H3. | B3: TOTAL CHELTUIELI | G3: Estimat | H3: Real
A4: Cheltuielile totale estimate se află în celula G4 și cheltuielile totale reale din H4 sunt calculate automat. Următoarele instrucțiuni se află în celula A6. | G4: =SUM(C11,C19,C25,C32,CheltuieliRăcoritoare[[#Totals],[Estimat]],G19,G24) -> 882.00 lei | H4: =SUM(D11,D19,D25,D32,CheltuieliRăcoritoare[[#Totals],[Real]],H19,H24) -> 302.00 lei
A6: Introduceți cheltuielile cu locația în tabel, începând cu celula din dreapta și cheltuielile pentru băuturi răcoritoare în tabel, începând cu celula F6. Următoarele instrucțiuni se află în celula A13. | B6: Locație | C6: Estimat | D6: Real | F6: Băuturi răcoritoare | G6: Estimat | H6: Real
B7: Taxe pentru sală | C7: 500.00 lei | F7: Alimente
B8: Personalul locației | F8: Băuturi | G8: 20.00 lei
B9: Echipament | F9: Articole din material textil | H9: 20.00 lei
B10: Mese și scaune | F10: Personal și recompense
B11: Total | C11: =SUBTOTAL(109,CheltuieliLocație[Estimat]) -> 500.00 lei | D11: =SUBTOTAL(103,CheltuieliLocație[Real]) -> 0.00 lei | F11: Total | G11: =SUBTOTAL(109,CheltuieliRăcoritoare[Estimat]) -> 20.00 lei | H11: =SUBTOTAL(103,CheltuieliRăcoritoare[Real]) -> 1.00 lei
A13: Introduceți cheltuielile pentru decorațiuni în tabel, începând cu celula din dreapta și cheltuielile pentru program în tabel, începând cu celula F13. Următoarele instrucțiuni se află în celula A21. | B13: Decorațiuni | C13: Estimat | D13: Real | F13: Program | G13: Estimat | H13: Real
B14: Flori | C14: 200.00 lei | D14: 300.00 lei | F14: Divertisment
B15: Lumânări | F15: Vorbitori | G15: 30.00 lei
B16: Iluminare | F16: Călătorii
B17: Baloane | F17: Hotel
B18: Consumabile din hârtie | F18: Altele
B19: Total | C19: =SUBTOTAL(109,CheltuieliDecorațiuni[Estimat]) -> 200.00 lei | D19: =SUBTOTAL(109,CheltuieliDecorațiuni[Real]) -> 300.00 lei | F19: Total | G19: =SUBTOTAL(109,CheltuieliProgram[Estimat]) -> 30.00 lei | H19: =SUBTOTAL(103,CheltuieliProgram[Real]) -> 0.00 lei
A21: Introduceți cheltuielile pentru publicitate în tabel, începând cu celula din dreapta și cheltuielile pentru premii în tabel, începând cu celula F21. Următoarele instrucțiuni se află în celula A27. | B21: Publicitate | C21: Estimat | D21: Real | F21: Premii | G21: Estimat | H21: Real
B22: Lucrări grafice | F22: Panglici/plachete/trofee
B23: Fotocopiere/imprimare | C23: 20.00 lei | F23: Cadouri | G23: 100.00 lei
B24: Cheltuieli cu poșta | F24: Total | G24: =SUBTOTAL(109,CheltuieliPremii[Estimat]) -> 100.00 lei | H24: =SUBTOTAL(103,CheltuieliPremii[Real]) -> 0.00 lei
B25: Total | C25: =SUBTOTAL(109,CheltuieliPublicitate[Estimat]) -> 20.00 lei | D25: =SUBTOTAL(103,CheltuieliPublicitate[Real]) -> 0.00 lei
A27: Introduceți cheltuieli diverse în tabel, începând cu celula din dreapta. | B27: Diverse | C27: Estimat | D27: Real
B28: Telefon | D28: 13.00 lei
B29: Transport | C29: 12.00 lei
B30: Consumabile papetărie
B31: Servicii fax
B32: Total | C32: =SUBTOTAL(109,CheltuieliDiverse[Estimat]) -> 12.00 lei | D32: =SUBTOTAL(103,CheltuieliDiverse[Real]) -> 1.00 lei

Sheet Venit
A1: Introduceți veniturile estimate și reale pentru fiecare categorie în tabelele corespunzătoare din această foaie de lucru. Titlul acestei foi de lucru se actualizează automat în celulele de la dreapta. Subtitlul se află în celula G1. Găsiți instrucțiuni utile despre cum să utilizați această foaie de lucru în celulele din această coloană. Următoarele instrucțiuni se află în celula A3. | B1: =Cheltuieli!B1 -> Buget de eveniment pentru | D1: =Cheltuieli!D1 -> Nume eveniment | G1: VENITURI
A3: Eticheta Venituri totale se află în celula de la dreapta, eticheta Estimate în celula F3 și Real în G3. | B3: VENITURI TOTALE | F3: Estimat | G3: Real
A4: Veniturile estimate totale se calculează automat în celula F4 și veniturile totale reale în G4. | F4: =SUM(Admiteri[[#Totals],[Venituri estimate]],ReclameÎnProgram[[#Totals],[Venituri estimate]],ExpozanțiȘiVânzători[[#Totals],[Venituri estimate]],VânzareArticole[[#Totals],[Venituri estimate]]) -> 1,936.00 lei | G4: =SUM(Admiteri[[#Totals],[Venituri reale]],ReclameÎnProgram[[#Totals],[Venituri reale]],ExpozanțiȘiVânzători[[#Totals],[Venituri reale]],VânzareArticole[[#Totals],[Venituri reale]]) -> 1,831.00 lei
A5: Eticheta Intrări se află în celula din dreapta. | B5: INTRĂRI
A6: Introduceți numărul estimat și numărul real de intrări împreună cu prețul biletelor în tabel, începând cu celula din dreapta. Veniturile estimate și veniturile reale din intrări se calculează automat. Următoarele instrucțiuni se află în celula A11. | B6: Nr. estimat | C6: Nr. real | D6: Tip | E6: Preț | F6: Venituri estimate | G6: Venituri reale
B7: 300 | C7: 278 | D7: Adulți @ | E7: 5.00 lei | F7: =B7*E7 -> 1,500.00 lei | G7: =C7*E7 -> 1,390.00 lei
B8: 197 | C8: 195 | D8: Copii @ | E8: 2.00 lei | F8: =B8*E8 -> 394.00 lei | G8: =C8*E8 -> 390.00 lei
B9: 42 | C9: 51 | D9: Altele @ | E9: 1.00 lei | F9: =B9*E9 -> 42.00 lei | G9: =C9*E9 -> 51.00 lei
B10: Total | F10: =SUBTOTAL(109,Admiteri[Venituri estimate]) -> 1,936.00 lei | G10: =SUBTOTAL(109,Admiteri[Venituri reale]) -> 1,831.00 lei
A11: Eticheta Reclame în cadrul programului se află în celula din dreapta. | B11: RECLAME ÎN CADRUL PROGRAMULUI
A12: Introduceți numărul estimat și numărul real de reclame în cadrul programului și tarifele pentru anunțuri în tabel, începând cu celula din dreapta. Veniturile estimate și cele reale din reclame se calculează automat. Următoarele instrucțiuni se află în celula A17. | B12: Nr. estimat | C12: Nr. real | D12: Tip | E12: Preț | F12: Venituri estimate | G12: Venituri reale
B13: 12 | D13: Coperți @ | F13: =B13*E13 -> 0.00 lei | G13: =C13*E13 -> 0.00 lei
C14: 158 | D14: Jumătăți de pagină @ | F14: =B14*E14 -> 0.00 lei | G14: =C14*E14 -> 0.00 lei
B15: 4 | D15: Sferturi de pagină @ | F15: =B15*E15 -> 0.00 lei | G15: =C15*E15 -> 0.00 lei
B16: Total | F16: =SUBTOTAL(109,ReclameÎnProgram[Venituri estimate]) -> 0.00 lei | G16: =SUBTOTAL(109,ReclameÎnProgram[Venituri reale]) -> 0.00 lei
A17: Eticheta Expozanți sau Furnizori se află în celula din dreapta. | B17: EXPOZANȚI/FURNIZORI
A18: Introduceți numărul estimat și numărul real de expozanți și de furnizori și tarifele pentru standuri în tabel, începând cu celula din dreapta. Veniturile estimate și cele reale se calculează automat. Următoarele instrucțiuni se află în celula A23. | B18: Nr. estimat | C18: Nr. real | D18: Tip | E18: Preț | F18: Venituri estimate | G18: Venituri reale
B19: 23 | D19: Standuri mari @ | F19: =B19*E19 -> 0.00 lei | G19: =C19*E19 -> 0.00 lei
B20: 354 | D20: Standuri medii @ | F20: =B20*E20 -> 0.00 lei | G20: =C20*E20 -> 0.00 lei
B21: 56 | D21: Standuri mici @ | F21: =B21*E21 -> 0.00 lei | G21: =C21*E21 -> 0.00 lei
B22: Total | F22: =SUBTOTAL(109,ExpozanțiȘiVânzători[Venituri estimate]) -> 0.00 lei | G22: =SUBTOTAL(109,ExpozanțiȘiVânzători[Venituri reale]) -> 0.00 lei
A23: Eticheta Vânzare de articole se află în celula din dreapta. | B23: VÂNZARE DE ARTICOLE
A24: Introduceți numărul estimat și numărul real de articole vândute și prețurile articolelor în tabel, începând cu celula din dreapta. Veniturile estimate și cele reale se calculează automat. | B24: Nr. estimat | C24: Nr. real | D24: Tip | E24: Preț | F24: Venituri estimate | G24: Venituri reale
D25: Articole @ | F25: =B25*E25 -> 0.00 lei | G25: =C25*E25 -> 0.00 lei
B26: 123 | D26: Articole @ | F26: =B26*E26 -> 0.00 lei | G26: =C26*E26 -> 0.00 lei
D27: Articole @ | F27: =B27*E27 -> 0.00 lei | G27: =C27*E27 -> 0.00 lei
B28: 13 | D28: Articole @ | F28: =B28*E28 -> 0.00 lei | G28: =C28*E28 -> 0.00 lei
B29: Total | F29: =SUBTOTAL(109,VânzareArticole[Venituri estimate]) -> 0.00 lei | G29: =SUBTOTAL(109,VânzareArticole[Venituri reale]) -> 0.00 lei

Sheet Rezumat profit și pierderi
A1: Rezumatul profiturilor și pierderilor și diagrama care arată veniturile și cheltuielile totale se actualizează automat în această foaie de lucru. Titlul acestei foi de lucru se actualizează automat în celulele de la dreapta. Subtitlul se află în celula G1 și G2. Găsiți instrucțiuni utile despre cum să utilizați această foaie de lucru în celulele din această coloană. Următoarele instrucțiuni se află în celula A3. | B1: =Cheltuieli!B1 -> Buget de eveniment pentru | D1: =Cheltuieli!D1 -> Nume eveniment | G1: PROFIT
G2: Rezumat pierderi
A3: Diagrama cu bare care compară veniturile și cheltuielile estimate și pe cele reale se află în celula E3. | E3: Diagrama cu bare care afișează o comparație între veniturile și cheltuielile estimate și cele reale se află în această celulă.
A4: Tabelul Rezumat care începe de la celula din dreapta se actualizează automat. Următoarele instrucțiuni se află în celula A8. | B4: Total | C4: Estimat | D4: Real
B5: Venituri totale | C5: =Venit!F10 -> 1,936.00 lei | D5: =Venit!F4 -> 1,936.00 lei
B6: Total cheltuieli | C6: =Cheltuieli!G4 -> 882.00 lei | D6: =Cheltuieli!H4 -> 302.00 lei
A8: Profitul sau pierderea totală estimată se calculează automat în celula C8 și profitul sau pierderea totală reală în celula D8. | B8: Profit total (sau pierderi) | C8: =C5-C6 -> 1,054.00 lei | D8: =D5-D6 -> 1,634.00 lei
